Cogmind - Beta 11.1 @@@ ROGUE MODE // 2022.05.13 @ 18:40:56 Player: LU-1G1 Result: Destroyed by D-53 Grenadier with Mini Grenade Launcher Performance ------------- Evolutions (0) 0 Regions Visited (4) 800 Robots Destroyed (27) 135 Value Destroyed (485) 485 Prototype IDs (0) 0 Alien Tech Used (0) 0 Bonus (-36) -36 TOTAL SCORE: 1384 Bonus ------- Friendly Fire -36 Cogmind --------- Core Integrity 0/250 Matter 122/300 Energy 35/100 System Corruption 0% Temperature Cool (0) Movement Treading (240) Ox1 Location -9/Mines Parts ------- > --- POWER (1) -------- (None) > --- PROPULSION (2) --- Light Treads Light Treads > --- UTILITY (2) ------ High-capacity Storage Unit Core Shielding > --- WEAPON (2) ------- Particle Gun Light Assault Rifle > --- INVENTORY (20) --- Ion Engine Light Nuclear Core Light Treads Signal Interpreter Seismic Detector Core Shielding Core Shielding Weapon Shielding Shield Generator Particle Gun Particle Gun Grenade Launcher Grenade Launcher Hammer Peak State ------------ > --- POWER ------------ Ion Engine > --- PROPULSION ------- Light Treads Light Treads > --- UTILITY ---------- High-capacity Storage Unit Core Shielding > --- WEAPON ----------- Particle Gun Assault Rifle > --- INVENTORY -------- Ion Engine Light Nuclear Core Light Treads Light Treads Light Treads Light Treads Signal Interpreter Seismic Detector Core Shielding Core Shielding Weapon Shielding Shield Generator Particle Gun Particle Gun Particle Gun Assault Rifle Light Assault Rifle Grenade Launcher Grenade Launcher Hammer [Rating: 10] Favorites ----------- Power Ion Engine Engine Ion Engine Propulsion Light Treads Treads Light Treads Utility Core Shielding Device Seismic Detector Storage High-capacity Storage Unit Protection Core Shielding Weapon Assault Rifle Energy Gun Medium Laser Ballistic Gun Assault Rifle Launcher Grenade Launcher Build | -11 -10 -10 -10 -9 ------- Run | Scr Mat Min Exi Min Slots Evolved . | . . . . . Power . | . . . . . Propulsion . | . . . . . Utility . | . . . . . Weapon . | . . . . . Parts Attached 33 | 7 15 3 . 8 Power 2 | 1 1 . . . Engine 2 | 1 1 . . . Core . | . . . . . Reactor . | . . . . . Propulsion 11 | 2 5 1 . 3 Treads 11 | 2 5 1 . 3 Leg . | . . . . . Wheel . | . . . . . Hover . | . . . . . Flight . | . . . . . Utility 5 | 2 3 . . . Device 1 | 1 . . . . Storage 3 | 1 2 . . . Processor . | . . . . . Hackware . | . . . . . Protection 1 | . 1 . . . Artifact . | . . . . . Weapon 15 | 2 6 2 . 5 Energy Gun 5 | 1 2 . . 2 Energy Cannon . | . . . . . Ballistic Gun 6 | 1 2 1 . 2 Ballistic Cannon . | . . . . . Launcher 4 | . 2 1 . 1 Special Weapon . | . . . . . Impact Weapon . | . . . . . Slashing Weapon . | . . . . . Piercing Weapon . | . . . . . Special Melee Weapon . | . . . . . Unidentified Prototypes . | . . . . . Parts Lost 10 | . 2 1 . 7 Power 1 | . . . . 1 Propulsion 5 | . 1 1 . 3 Utility . | . . . . . Weapon 4 | . 1 . . 3 Highest Loss Streak 7 | . 1 1 . 7 To Critical Strikes . | . . . . . Average Slot Usage (%) 99 | . 98 100 100 94 Engine 13 | . 14 14 14 11 Treads 27 | . 27 28 28 25 Storage 14 | . 14 14 14 14 Protection 13 | . 12 14 14 14 Energy Gun 6 | . 13 . . 11 Ballistic Gun 20 | . 14 27 28 14 Naked Turns . | . . . . . Heaviest Build 51 | 14 50 50 50 51 Greatest Support 40 | 40 40 40 40 40 Greatest Overweight (x) 1 | 1 1 1 1 1 Average Overweight (x) . | . . 1 1 1 Largest Inventory Capacity 20 | 8 20 20 20 20 Average Capacity 19 | 6 19 20 20 20 Most Carried 20 | 7 20 20 20 20 Average Carried 17 | 4 15 19 20 19 Final Capacity 20 | 8 20 20 20 20 Final Carried 20 | 7 20 20 20 14 Class Distribution -------------------- 100% | Mutant Dominant Class ---------------- Mutant | -10/Materials Mutant | -10/Mines Mutant | -10/Exiles Mutant | -9/Mines Resources | -11 -10 -10 -10 -9 ----------- Run | Scr Mat Min Exi Min Matter Collected 641 | 288 236 117 . . Remotely . | . . . . . Salvage Created 814 | 114 593 97 . 10 Parts 40 | 8 23 9 . . Haulers Intercepted 1 | . 1 . . . Recyclers Shooed 2 | . 2 . . . Parts Field Recycled . | . . . . . Retrieved Matter . | . . . . . Parts Self-Destructed . | . . . . . Prevented . | . . . . . Kills | -11 -10 -10 -10 -9 ------- Run | Scr Mat Min Exi Min Combat Hostiles Destroyed 21 | . 11 8 . 2 Guns 14 | . 9 5 . . AOE 7 | . 2 3 . 2 Classes Destroyed 7 | 2 4 . . 1 Tunneler 3 | 3 . . . . Hauler 1 | . 1 . . . Recycler 3 | 1 2 . . . Watcher 1 | . 1 . . . Swarmer 11 | . 3 8 . . Grunt 8 | . 8 . . . Assembled 2 | . . . . 2 Best Kill Streak 4 | 4 3 3 . 2 Combat Bots Only 3 | . 3 3 . 2 Max Kills in Single Turn 2 | 2 2 2 . 1 Gunslinging . | . . . . . Exploded 2 | . 2 2 . 1 Melee . | . . . . . Uniques/NPCs Destroyed . | . . . . . Combat | -11 -10 -10 -10 -9 -------- Run | Scr Mat Min Exi Min Damage Taken 1659 | . 586 318 . 755 Core 257 | . 70 45 . 142 Absorbed by Shields . | . . . . . Redirected to Shielding 48 | . 15 7 . 26 Regen/Repaired (Parts) 114 | . 114 . . . Core Remaining (%) 100 | 100 . . . . Volleys Fired 97 | 6 63 16 . 12 Largest 2 | 2 2 2 . 2 Hottest 85 | 70 70 40 . 85 Shots Fired 164 | 12 107 30 . 15 Gun 156 | 12 105 28 . 11 Cannon . | . . . . . Launcher 8 | . 2 2 . 4 Special . | . . . . . Kinetic 92 | 6 53 28 . 5 Thermal 64 | 6 52 . . 6 Explosive 8 | . 2 2 . 4 Electromagnetic . | . . . . . Robot Hit Streak 9 | 4 9 4 . 2 Robot Miss Streak 4 | 2 4 3 . 2 Penetration Max . | . . . . . Secondary Targets . | . . . . . Shots Hit Robots 95 | 8 67 15 . 5 Core Hits 49 | 5 26 9 . 9 Critical Kills . | . . . . . Critical Parts Destroyed 1 | 1 . . . . Critical Strikes 5 | 2 3 . . . Burn 4 | 1 3 . . . Destroy 1 | 1 . . . . Melee Attacks . | . . . . . Impact . | . . . . . Slashing . | . . . . . Piercing . | . . . . . Sneak Attacks . | . . . . . Combat Hostiles . | . . . . . Follow-up Attacks . | . . . . . Damage Inflicted 1913 | 127 1041 416 . 329 Guns 1239 | 124 835 203 . 77 Cannons . | . . . . . Explosions 642 | . 181 209 . 252 Melee . | . . . . . Ramming 32 | 3 25 4 . . Kinetic 756 | 60 461 203 . 32 Thermal 512 | 64 374 29 . 45 Explosive 613 | . 181 180 . 252 Electromagnetic . | . . . . . Impact . | . . . . . Slashing . | . . . . . Piercing . | . . . . . Highest Corruption . | . . . . . Average Corruption . | . . . . . Corruption Purged . | . . . . . Corruption Blocked . | . . . . . Overload Shots . | . . . . . Overflow Damage 40 | . 40 . . . Projectiles . | . . . . . Explosions 40 | . 40 . . . Melee . | . . . . . Knockbacks 1 | . 1 . . . Impact 1 | . 1 . . . Kinetic . | . . . . . Secondary . | . . . . . Self-Inflicted Damage 44 | . . 44 . . Shots 3 | . . 3 . . Rammed 8 | 1 6 1 . . Targets Rammed 9 | 1 7 1 . . Kicked . | . . . . . Crushed 1 | . 1 . . . Highest Temperature 93 | 36 93 7 . 72 Average Temperature 25 | 16 26 4 . 25 Received Heat Transfer 231 | . 231 . . . Siege Activations . | . . . . . Robots Corrupted . | . . . . . Combat Hostiles . | . . . . . Parts Fried . | . . . . . Impact Corruptions . | . . . . . Robots Melted . | . . . . . Combat Hostiles . | . . . . . Parts Melted 3 | 1 2 . . . Heat Transferred 1752 | 259 1332 50 . 111 Parts Sabotaged . | . . . . . Parts Stolen . | . . . . . Parts Stripped . | . . . . . Power Chain Reactions . | . . . . . Missiles Intercepted . | . . . . . Alert | -11 -10 -10 -10 -9 ------- Run | Scr Mat Min Exi Min Peak Influence 290 | 20 179 290 . 54 Initial 41 | . 13 41 . . Average 98 | 7 66 178 . 15 Maximum Alert Level 1 | . . 1 . . Low Security (%) 85 | 100 100 54 . 100 Level 1 14 | . . 45 . . Level 2 . | . . . . . Level 3 . | . . . . . Level 4 . | . . . . . Level 5 . | . . . . . High Security . | . . . . . Max Security . | . . . . . Squads Dispatched 3 | . 3 . . . Investigation 1 | . 1 . . . Extermination . | . . . . . Reinforcement 2 | . 2 . . . Assault . | . . . . . Garrison . | . . . . . Intercept . | . . . . . Searches Triggered . | . . . . . Construction Impeded . | . . . . . Haulers Reinforced . | . . . . . Active Scanning Responses . | . . . . . Cargo Convoy Interrupts . | . . . . . Stealth | -11 -10 -10 -10 -9 --------- Run | Scr Mat Min Exi Min Distress Signals 1 | . 1 . . . Communications Jammed . | . . . . . Distress Signals . | . . . . . Times Spotted 54 | . 23 9 . 22 Peak Tracking Total 20 | . 4 3 . 20 Tactical Retreats 1 | . . . . 1 Traps | -11 -10 -10 -10 -9 ------- Run | Scr Mat Min Exi Min Traps Triggered 1 | . 1 . . . Indirectly . | . . . . . Trap Hack Attempts . | . . . . . Triggered . | . . . . . Disarmed . | . . . . . Reprogrammed . | . . . . . Reused . | . . . . . Traps Extracted . | . . . . . Installed . | . . . . . Triggered . | . . . . . Machines | -11 -10 -10 -10 -9 ---------- Run | Scr Mat Min Exi Min Machines Disabled 2 | . . 2 . . Max in Single Turn 2 | . . 2 . . Machines Sabotaged . | . . . . . Garrisons Compromised . | . . . . . Overloaded Fab Kills . | . . . . . Hacking | -11 -10 -10 -10 -9 --------- Run | Scr Mat Min Exi Min Machines Accessed 9 | . 8 . 1 . Terminals 7 | . 7 . . . Fabricators . | . . . . . Repair Stations 1 | . 1 . . . Recycling Units . | . . . . . Scanalyzers . | . . . . . Garrison Access . | . . . . . Total Hacks 20 | . 19 . 1 . Successful 13 | . 12 . 1 . Failed 7 | . 7 . . . Catastrophic 1 | . 1 . . . Database Lockouts . | . . . . . Manual 4 | . 4 . . . Terminals 12 | . 12 . . . Fabricators . | . . . . . Repair Stations 7 | . 7 . . . Recycling Units . | . . . . . Scanalyzers . | . . . . . Garrison Access . | . . . . . Terminal Hacks 9 | . 8 . 1 . Record 1 | . . . 1 . Robot Analysis 2 | . 2 . . . Branch Access Points 1 | . 1 . . . Alert Level 1 | . 1 . . . Locate Traps 1 | . 1 . . . Hauler Manifests 1 | . 1 . . . Zone Layout 2 | . 2 . . . Fabricator Hacks . | . . . . . Repair Station Hacks 4 | . 4 . . . Scan Component 2 | . 2 . . . Repair 2 | . 2 . . . Recycling Unit Hacks . | . . . . . Scanalyzer . | . . . . . Garrison Access Hacks . | . . . . . Unauthorized Hacks . | . . . . . Terminals . | . . . . . Fabricators . | . . . . . Repair Stations . | . . . . . Recycling Units . | . . . . . Scanalyzers . | . . . . . Garrison Access . | . . . . . Data Cores Recovered . | . . . . . Used . | . . . . . Hacking Detections 7 | . 7 . . . Full Trace Events 1 | . 1 . . . Feedback Events . | . . . . . Feedback Blocked . | . . . . . Robot Schematics Acquired . | . . . . . Robots Built . | . . . . . Authchips . | . . . . . Time . | . . . . . Total Robot Build Rating . | . . . . . Part Schematics Acquired . | . . . . . Parts Built . | . . . . . Authchips . | . . . . . Time . | . . . . . Total Part Build Rating . | . . . . . Parts Repaired 2 | . 2 . . . Time 52 | . 52 . . . Parts Recycled . | . . . . . Recycled Matter . | . . . . . Retrieved Matter . | . . . . . Retrieved Components . | . . . . . Parts Scanalyzed . | . . . . . Part Schematics Acquired . | . . . . . Parts Damaged . | . . . . . Bothacking | -11 -10 -10 -10 -9 ------------ Run | Scr Mat Min Exi Min Used RIF Installer . | . . . . . Robots Hacked . | . . . . . Non-combat . | . . . . . Combat . | . . . . . Robot Hacks Applied . | . . . . . Relay Couplers Released . | . . . . . Fabnet Peak Effective % . | . . . . . Robots Rewired . | . . . . . Allies Hacked . | . . . . . Hacks Repelled . | . . . . . Allies | -11 -10 -10 -10 -9 -------- Run | Scr Mat Min Exi Min Total Allies 3 | . . 3 . . Largest Group 3 | . . 3 3 2 Highest-Rated Group 40 | . . 40 40 29 Highest-Rated Ally 16 | . . 16 16 16 Total Orders . | . . . . . Ally Attacks 7 | . . . . 7 Total Damage 78 | . . . . 78 Kills 1 | . . . . 1 Allies Corrupted . | . . . . . Allies Melted . | . . . . . Intel | -11 -10 -10 -10 -9 ------- Run | Scr Mat Min Exi Min Robot Analysis Total 2 | . 2 . . . Derelict Logs Recovered 1 | . . 1 . . Drone Launches . | . . . . . Drone Recoveries . | . . . . . Exploration | -11 -10 -10 -10 -9 ------------- Run | Scr Mat Min Exi Min Turns Passed 3169 | 99 1546 770 704 50 Spaces Moved 1178 | 43 539 296 294 6 Core 6 | 6 . . . . Treads 1172 | 37 539 296 294 6 Legs . | . . . . . Wheels . | . . . . . Hover . | . . . . . Flight . | . . . . . Fastest Speed 50 | 50 160 240 240 240 Average Speed 231 | 148 229 240 240 240 Slowest Speed 240 | 160 240 240 240 240 Overloaded Moves . | . . . . . Propulsion Burnouts . | . . . . . Robots Hopped . | . . . . . Cave-ins Triggered . | . . . . . Exploration Rate (%) 48 | 4 92 59 68 20 Regions Visited 4 Branch Regions 3 Pre-discovered Areas 1 | . . 1 . . Known Exits Taken 1 | . 1 . . . Unknown Exits Taken 3 | 1 . 1 1 . Scrap Searched 1 | . . 1 . . Spaces Dug 3 | . 3 . . . Terrain Destroyed 68 | . 12 19 . 37 Melee . | . . . . . Projectile . | . . . . . AOE 68 | . 12 19 . 37 Terrain Rammed . | . . . . . Walls Destroyed . | . . . . . Machines Disabled . | . . . . . Actions | -11 -10 -10 -10 -9 --------- Run | Scr Mat Min Exi Min Total 1439 | 63 733 324 293 26 Wait 83 | . 75 8 . . Move 1175 | 43 538 295 293 6 Hop . | . . . . . Pick Up 30 | 6 23 1 . . Fast Attach 9 | 7 2 . . . Attach 9 | . 2 1 . 6 Detach 1 | 1 . . . . Swap 15 | . 11 2 . 2 Drop 12 | . 12 . . . Fire 97 | 6 63 16 . 12 Melee . | . . . . . Ram . | . . . . . Kick . | . . . . . Crush 8 | . 7 1 . . Escape Stasis . | . . . . . Rewire . | . . . . . Trap . | . . . . . Miscellaneous . | . . . . . Route ------- -11/Scrapyard -10/Materials (discovered 4 exits: [*Mat x3] / *Min) -10/Mines (discovered 2 exits: [*Mat] / *Exi) -10/Exiles -9/Mines History --------- Turn | Location | Event 19 | -11/Scrapyard | Discovered new exit (range 15) 100 | -11/Scrapyard | Entered Materials 316 | -10/Materials | Build established: Mutant 543 | -10/Materials | Discovered new exit (range 13) 654 | -10/Materials | Discovered new exit (range 13) 721 | -10/Materials | Repaired Assault Rifle 751 | -10/Materials | Repaired Lgt. Treads 1487 | -10/Materials | Discovered new exit (range 3) 1503 | -10/Materials | Identified exit to Mines 1646 | -10/Materials | Entered Mines 1833 | -10/Mines | Assisted by bots powering up and referring to "LRC-V3" 2107 | -10/Mines | Deemed a non-threat by the Exiles lab entrance 2109 | -10/Mines | Discovered new exit (range 5) 2171 | -10/Mines | Discovered new exit (range 12) 2282 | -10/Mines | Learned location of Zion (-7) 2416 | -10/Mines | Entered Exiles 2416 | -10/Exiles | Found Exiles lab abandoned 2416 | -10/Exiles | Accompanied by 3 allies 3091 | -10/Exiles | Discovered new exit (range 14) 3120 | -10/Exiles | Entered Mines 3120 | -9/Mines | Accompanied by 3 allies 3121 | -9/Mines | Assembled infested the area 3126 | -9/Mines | Assisted by a Guerilla fighting off Assembled 3136 | -9/Mines | Core integrity fell below 50% 3165 | -9/Mines | Core integrity fell below 20% 3170 | -9/Mines | Destroyed by D-53 Grenadier with Mini Grenade Launcher Last Messages --------------- 03151_ W7-QJ6(h) destroyed. 03152_ The unstable cave ceiling collapses. 03154_ Lgt. Treads destroyed. 03155_ The unstable cave ceiling collapses. 03158_ Assault Rifle destroyed. 03159_ The unstable cave ceiling collapses. 03160_ U-05 Engineer lays Concrete. 03161_ Ion Engine destroyed. 03161_ U-05 Engineer lays Concrete. 03163_ Particle Gun destroyed. 03163_ U-05 Engineer lays Concrete. 03165_ The unstable cave ceiling collapses. 03165_ U-05 Engineer lays Concrete. 03167_ Lgt. Treads destroyed. 03167_ Assault Rifle destroyed. 03168_ The unstable cave ceiling collapses. 03168_ U-05 Engineer lays Concrete. 03168_ Lgt. Treads destroyed. 03169_ The unstable cave ceiling collapses. 03169_ U-05 Engineer lays Concrete. Map ----- +----------------------------------------------------+ | ?????????????????????????????????????????????????? | | ?????????????????????????????????????????????????? | | ?????????????????????????????????????????????????? | | ?????????????????????????????????????????????????? | | ?????????????????????????????????????????????????? | | ?????????????????????????????????????????????????? | | ?????????????????????????????????????????????????? | | ?????????????????????????????????????????????????? | | ?????????????????????????????????????????????????? | | ???????????????????????????? ??????????????????? | | ??????????????????????????? % ??????????????????? | | ?????????????????????????## %###???????????????? | | ????????????????????????? "; #???????????????? | | ?????????????????????????## #???????????????? | | ?????????????????????????# #???????????????? | | ?????????????????????????# ##??????????????? | | ?????????????????????????# ##?????????????? | | ?????????????????????????# # # # #?????=???????? | | ????????????????????????## ##???? ? ????? | | ????????????????????????# # # #?? % #????? | | ??????????????????????### ## #?????? | | ?????????????????????## % ?????? | | ????????????????????## ?????? | | ????????????????????# ????? | | ????????????????????# d #????? | | ????????????????????# @ d u #????? | | ????????????????# "???????? | | ???????????????# ###???????? | | ??????????????# #?????????? | | ????????????# #????????? | | ???????????? ## #???????? | | ???????????? ??## #??????? | | ???????????? ????# ## #??????? | | ?????????????# ?????# ##?# #??????? | | ?????????????#??????# ####???# #??????? | | ????????????????????## ????????##%" ##??????? | | ?????????????????????## ??????????" ####???????? | | ??????????????????????## ??????????? #??????????? | | ???????????????????????# ??????????? ??????????? | | ??????????????????????? ???????????????????????? | | ???????????????????????? ???????????????????????? | | ?????????????????????????????????????????????????? | | ?????????????????????????????????????????????????? | | ?????????????????????????????????????????????????? | | ?????????????????????????????????????????????????? | | ?????????????????????????????????????????????????? | | ?????????????????????????????????????????????????? | | ?????????????????????????????????????????????????? | | ?????????????????????????????????????????????????? | | ?????????????????????????????????????????????????? | +----------------------------------------------------+ Best States ------------- Heat Dissipation 25 Energy Generation 10 Energy Capacity 250 Matter Stores 300 Matter Capacity 300 Sight Range 16 Terrain Scan Density 10 Core Shielding 20 Evasion (%) 40 Recoil Reduction 2 Item Schematics ----------------- None Robot Schematics ------------------ None Fabricated ------------ Nothing Alien Tech Used ----------------- None Achievements -------------- None Challenges ------------ None Game ------ Seed AuthchipPhasingBarrier Manual? 0 Play Time 00:16:42 Cumulative 507.2 hours Start 2022.05.11 @ 18:53:39 End 2022.05.13 @ 18:40:56 Sessions 2 Manual Loads 0 Difficulty Rogue Special Mode None Game No. 498 Rogue 283 Adventurer 112 Explorer 103 Win Type - Total 32 Types 23/0/6/2/0/0/0/1/0 Lore% 87 Gallery% 91 Achievement% 80 Wizard Run 0 Options --------- ASCII 0 Keyboard 1 Movement Vi Keybinds 1 Fullscreen 2 Font 18/SmallcapsGlow Map View 76x50 Tactical HUD 1 Map Filters NONE Filters NONE Steam 1 RUN: e9324d94-89c4-4375-87b9-e3ee53cc2f1c